fUSD/lending_fUSD_20240425
["ID","MTS","AMOUNT","RATE_DAILY","PERIOD"]
[323497855,1714053059776,-151.0,0.00012862,2]
[323497856,1714053059785,-14140.59144214,0.00012863,2]
[323497857,1714053059795,-150.0,0.00012865,2]
[323497858,1714053059805,-238.09460187,0.00012866,2]
[323497859,1714053059815,-2125.69922323,0.00012867,2]
[323497860,1714053059824,-160.6539788,0.00012869,2]
[323497861,1714053059834,-150.0,0.00012869,2]
[323497862,1714053059843,-200.00824992,0.0001287,2]
[323497863,1714053059853,-150.0,0.0001287,2]
[323497864,1714053059862,-150.0,0.00012872,2]
[323497865,1714053059872,-150.0,0.00012872,2]
[323497866,1714053059884,-150.0,0.00012872,2]
[323497867,1714053059894,-304.00623519,0.00012874,2]
[323497868,1714053060110,-150.0,0.00012874,2]
[323497869,1714053060120,-150.0,0.00012874,2]
[323497870,1714053060132,-150.0,0.00012877,2]
[323497871,1714053060141,-150.0,0.00012877,2]
[323497872,1714053060151,-150.0,0.00012878,2]
[323497873,1714053060160,-150.0,0.00012879,2]
[323497874,1714053060169,-150.0,0.0001288,2]
[323497875,1714053060179,-14140.59144214,0.00012881,2]
[323497876,1714053060189,-25000.0,0.00012885,2]
[323497877,1714053060199,-150.0,0.00012885,2]
[323497878,1714053060208,-150.0,0.00012887,2]
[323497879,1714053060220,-200.88129127,0.00012887,2]
[323497880,1714053060230,-152.0,0.00012889,4]
[323497881,1714053060240,-169.07177895,0.0001289,2]
[323497882,1714053060249,-1417.32798384,0.0001289,2]
[323497883,1714053060259,-150.0,0.00012891,2]
[323497884,1714053060269,-185.46913543,0.00012891,2]
[323497885,1714053060278,-1599.79,0.00012892,2]
[323497886,1714053060287,-150.0,0.00012892,2]
[323497887,1714053060297,-150.0,0.00012892,2]
[323497888,1714053060306,-169.07177893,0.00012893,2]
[323497889,1714053060315,-150.0,0.00012893,2]
[323497890,1714053060324,-462.0,0.00012893,2]
[323497891,1714053060333,-1394.0,0.00012893,2]
[323497892,1714053060342,-970.0,0.00012893,2]
[323497893,1714053060352,-2296.0,0.00012893,2]
[323497894,1714053060361,-1256.0,0.00012893,2]
[323497895,1714053060370,-542.0,0.00012893,2]
[323497896,1714053060381,-1228.0,0.00012893,2]
[323497897,1714053060390,-807.0,0.00012893,2]
[323497898,1714053060400,-1859.0,0.00012893,2]
[323497899,1714053060409,-437.0,0.00012893,2]
[323497900,1714053060417,-610.0,0.00012893,2]
[323497901,1714053060427,-258.0,0.00012893,2]
[323497902,1714053060436,-150.0,0.00012893,2]
[323497903,1714053060446,-3121.0,0.00012893,2]
[323497904,1714053060455,-1475.0,0.00012893,2]
[323497905,1714053060465,-420.0,0.00012893,2]
[323497906,1714053060475,-2446.0,0.00012893,2]
[323497907,1714053060484,-1641.0,0.00012893,2]
[323497908,1714053060494,-214.0,0.00012893,2]
[323497909,1714053060503,-482.588,0.00012893,2]
[323497910,1714053060512,-150.0,0.00012893,2]
[323497911,1714053060522,-1140.0,0.00012893,2]
[323497912,1714053060531,-5895.0,0.00012893,2]
[323497913,1714053060540,-5732.0,0.00012893,2]
[323497914,1714053060550,-2706.0,0.00012893,2]
[323497915,1714053060559,-150.0,0.00012893,2]
[323497916,1714053060568,-37708.0,0.00012893,2]
[323497917,1714053060578,-150.09,0.00012893,2]
[323497918,1714053060587,-1055.0,0.00012893,2]
[323497919,1714053060597,-150.0,0.00012893,2]
[323497920,1714053060606,-150.0,0.00012893,2]
[323497921,1714053060616,-150.0,0.00012894,2]
[323497922,1714053060625,-1000.0,0.00012895,2]
[323497923,1714053060637,-500.0,0.00012895,2]
[323497924,1714053060645,-169.07177893,0.00012895,2]
[323497925,1714053060655,-1417.32798383,0.00012895,2]
[323497926,1714053060664,-185.46913541,0.00012896,2]
[323497927,1714053060673,-169.07177893,0.00012898,2]
[323497928,1714053060682,-785.211595,0.00012898,2]
[323497929,1714053060691,-1599.79,0.00012898,2]
[323497930,1714053060701,-150.0,0.00012898,2]
[323497931,1714053060711,-403.20335664,0.00012899,2]
[323497932,1714053060720,-1599.79,0.00012899,2]
[323497933,1714053060729,-1599.79,0.00012899,2]
[323497934,1714053060739,-12614.30813946,0.000129,2]
[323497935,1714053060748,-10000.0,0.000129,2]
[323497936,1714053060758,-169.07177893,0.000129,2]
[323497937,1714053060767,-14140.59144214,0.000129,2]
[323497938,1714053060777,-352.0,0.000129,2]
[323497939,1714053060786,-7313.56864391,0.000129,2]
[323497940,1714053060795,-7313.56864391,0.000129,2]
[323497941,1714053060804,-7313.56864391,0.000129,2]
[323497942,1714053060813,-7313.56864391,0.000129,2]
[323497943,1714053060823,-7313.56864391,0.000129,2]
[323497944,1714053060832,-7313.56864391,0.000129,2]
[323497945,1714053060841,-7313.56864391,0.000129,2]
[323497946,1714053060851,-1000.0,0.000129,2]
[323497947,1714053060860,-1417.32798383,0.000129,2]
[323497948,1714053060869,-185.46913541,0.000129,2]
[323497949,1714053060879,-667.0,0.000129,2]
[323497950,1714053060888,-238.09460187,0.000129,2]
[323497951,1714053060897,-150.0,0.000129,2]
[323497952,1714053060907,-150.0,0.00012902,2]
[323497953,1714053060918,-300.0,0.0001291,2]
[323497954,1714053060927,-150.0,0.00012913,2]
[323497955,1714053060936,-150.0,0.00012914,2]
[323497956,1714053060946,-150.0,0.00012922,2]
[323497957,1714053060956,-150.0,0.00012923,2]
[323497958,1714053060965,-150.0,0.00012923,2]
[323497959,1714053060974,-150.0,0.00012924,2]
[323497960,1714053060983,-150.0,0.00012924,2]
[323497961,1714053060994,-150.0,0.00012926,2]
[323497962,1714053061004,-150.0,0.00012928,2]
[323497963,1714053061013,-150.0,0.00012932,2]
[323497964,1714053061022,-150.0,0.00012932,2]
[323497965,1714053061031,-1500.0,0.00012933,2]
[323497966,1714053061041,-150.0,0.00012936,2]
[323497967,1714053061050,-150.0,0.00012942,2]
[323497968,1714053061059,-300.0,0.00012944,2]
[323497969,1714053061068,-150.0,0.00012945,2]
[323497970,1714053061078,-300.0,0.00012946,2]
[323497971,1714053061087,-305.77880619,0.00012947,2]
[323497972,1714053061097,-785.211595,0.00012948,2]
[323497973,1714053061106,-150.0,0.00012948,2]
[323497974,1714053061115,-443.35459668,0.00012952,2]
[323497975,1714053061124,-300.0,0.00012953,2]
[323497976,1714053061135,-150.0,0.00012958,2]
[323497977,1714053061144,-150.0,0.00012967,2]
[323497978,1714053061303,-150.0,0.00012969,2]
[323497979,1714053061314,-150.0,0.00012979,2]
[323497980,1714053061323,-150.0,0.00012986,2]
[323497981,1714053061333,-21034.0648767,0.00012987,2]
[323497982,1714053061342,-4009.0367107,0.00012987,2]
[323497983,1714053061351,-1269.9737364,0.00012987,2]
[323497984,1714053061360,-22016.7719793,0.00012987,2]
[323497985,1714053061370,-4211.1440722,0.00012987,2]
[323497986,1714053061381,-7140.7894134,0.00012987,2]
[323497987,1714053061390,-813.7835164,0.00012987,2]
[323497988,1714053061399,-1616.8000624,0.00012987,2]
[323497989,1714053061409,-151.0,0.00012989,2]
[323497990,1714053061419,-500.0,0.00012989,2]
[323497991,1714053061428,-500.0,0.00012989,2]
[323497992,1714053061438,-500.0,0.00012989,2]
[323497993,1714053061447,-500.0,0.00012989,2]
[323497994,1714053061456,-500.0,0.00012989,2]
[323497995,1714053061465,-379.36531968,0.00012989,2]
[323497996,1714053061474,-500.0,0.00012989,2]
[323497997,1714053061483,-182.0,0.00012989,2]
[323497998,1714053061492,-465.80976345,0.00012989,2]
[323497999,1714053061501,-500.0,0.00012989,2]
[323498000,1714053061511,-373.44218437,0.00012989,2]
[323498001,1714053061520,-500.0,0.00012989,2]
[323498002,1714053061530,-561.4,0.00012989,2]
[323498003,1714053061539,-500.0,0.00012989,2]
[323498004,1714053061548,-500.0,0.00012989,2]
[323498005,1714053061557,-520.62,0.00012989,2]
[323498006,1714053061566,-500.0,0.00012989,2]
[323498007,1714053061576,-500.0,0.00012989,2]
[323498008,1714053061585,-500.0,0.00012989,2]
[323498009,1714053061595,-500.0,0.00012989,2]
[323498010,1714053061605,-500.0,0.00012989,2]
[323498011,1714053061614,-500.0,0.00012989,2]
[323498012,1714053061623,-2043.12,0.00012989,2]
[323498013,1714053061633,-500.0,0.00012989,2]
[323498014,1714053061642,-500.0,0.00012989,2]
[323498015,1714053061651,-500.0,0.00012989,2]
[323498016,1714053061660,-500.0,0.00012989,2]
[323498017,1714053061670,-500.0,0.00012989,2]
[323498018,1714053061679,-500.0,0.00012989,2]
[323498019,1714053061688,-599.08,0.00012989,2]
[323498020,1714053061698,-6016.87,0.00012989,2]
[323498021,1714053061707,-1247.83,0.00012989,2]
[323498022,1714053061716,-545.57,0.00012989,2]
[323498023,1714053061725,-500.0,0.00012989,2]
[323498024,1714053061735,-4541.66,0.00012989,2]
[323498025,1714053061745,-500.0,0.00012989,2]
[323498026,1714053061755,-500.0,0.00012989,2]
[323498027,1714053061765,-500.0,0.00012989,2]
[323498028,1714053061774,-500.0,0.00012989,2]
[323498029,1714053061784,-1233.35,0.00012989,2]
[323498030,1714053061794,-500.0,0.00012989,2]
[323498031,1714053061803,-500.0,0.00012989,2]
[323498032,1714053061813,-500.0,0.00012989,2]
[323498033,1714053061822,-500.0,0.00012989,2]
[323498034,1714053061831,-601.92,0.00012989,2]
[323498035,1714053061841,-500.0,0.00012989,2]
[323498036,1714053061851,-500.0,0.00012989,2]
[323498037,1714053061861,-1883.57,0.00012989,2]
[323498038,1714053061871,-500.0,0.00012989,2]
[323498039,1714053061882,-500.0,0.00012989,2]
[323498040,1714053061892,-2624.0,0.00012989,2]
[323498041,1714053061902,-500.0,0.00012989,2]
[323498042,1714053061913,-7450.08,0.00012989,2]
[323498043,1714053061922,-500.0,0.00012989,2]
[323498044,1714053061932,-500.0,0.00012989,2]
[323498045,1714053061941,-500.0,0.00012989,2]
[323498046,1714053061951,-4099.22,0.00012989,2]
[323498047,1714053061960,-609.81,0.00012989,2]
[323498048,1714053061969,-518.33,0.00012989,2]
[323498049,1714053061979,-500.0,0.00012989,2]
[323498050,1714053061989,-500.0,0.00012989,2]
[323498051,1714053061999,-500.0,0.00012989,2]
[323498052,1714053062009,-1892.41,0.00012989,2]
[323498053,1714053062018,-500.0,0.00012989,2]
[323498054,1714053062028,-500.0,0.00012989,2]
[323498055,1714053062037,-500.0,0.00012989,2]
[323498056,1714053062046,-5526.75,0.00012989,2]
[323498057,1714053062056,-500.0,0.00012989,2]
[323498058,1714053062065,-500.0,0.00012989,2]
[323498059,1714053062075,-500.0,0.00012989,2]
[323498060,1714053062084,-500.0,0.00012989,2]
[323498061,1714053062094,-500.0,0.00012989,2]
[323498062,1714053062103,-3018.24,0.00012989,2]
[323498063,1714053062112,-500.0,0.00012989,2]
[323498064,1714053062122,-500.0,0.00012989,2]
[323498065,1714053062133,-500.0,0.00012989,2]
[323498066,1714053062143,-500.0,0.00012989,2]
[323498067,1714053062151,-500.0,0.00012989,2]
[323498068,1714053062161,-500.0,0.00012989,2]
[323498069,1714053062170,-500.0,0.00012989,2]
[323498070,1714053062179,-249.72471106,0.00012989,2]
[323498071,1714053062190,-500.0,0.00012989,2]
[323498072,1714053062199,-500.0,0.00012989,2]
[323498073,1714053062208,-19280.36,0.00012989,2]
[323498074,1714053062217,-500.0,0.00012989,2]
[323498075,1714053062227,-500.0,0.00012989,2]
[323498076,1714053062237,-500.0,0.00012989,2]
[323498077,1714053062246,-500.0,0.00012989,2]
[323498078,1714053062256,-2054.67,0.00012989,2]
[323498079,1714053062265,-500.0,0.00012989,2]
[323498080,1714053062274,-500.0,0.00012989,2]
[323498081,1714053062283,-500.0,0.0001299,2]
[323498082,1714053062292,-500.0,0.0001299,2]
[323498083,1714053062302,-500.0,0.0001299,2]
[323498084,1714053062311,-316.3834645,0.0001299,2]
[323498085,1714053062320,-500.0,0.0001299,2]
[323498086,1714053062330,-500.0,0.0001299,2]
[323498087,1714053062340,-500.0,0.0001299,2]
[323498088,1714053062349,-500.0,0.0001299,2]
[323498089,1714053062359,-500.0,0.0001299,2]
[323498090,1714053062368,-500.0,0.0001299,2]
[323498091,1714053062379,-500.0,0.0001299,2]
[323498092,1714053062389,-500.0,0.0001299,2]
[323498093,1714053062398,-500.0,0.0001299,2]
[323498094,1714053062408,-500.0,0.0001299,2]
[323498095,1714053062417,-500.0,0.0001299,2]
[323498096,1714053062427,-500.0,0.0001299,2]
[323498097,1714053062437,-461.46996004,0.0001299,2]
[323498098,1714053062446,-500.0,0.0001299,2]
[323498099,1714053062456,-321.25508729,0.0001299,2]
[323498100,1714053062465,-500.0,0.0001299,2]
[323498101,1714053062474,-500.0,0.0001299,2]
[323498102,1714053062485,-500.0,0.0001299,2]
[323498103,1714053062494,-500.0,0.0001299,2]
[323498104,1714053062503,-500.0,0.0001299,2]
[323498105,1714053062512,-500.0,0.0001299,2]
[323498106,1714053062521,-500.0,0.0001299,2]
[323498107,1714053062531,-500.0,0.0001299,2]
[323498108,1714053062540,-500.0,0.0001299,2]
[323498109,1714053062550,-500.0,0.0001299,2]
[323498110,1714053062559,-500.0,0.0001299,2]
[323498111,1714053062568,-500.0,0.0001299,2]
[323498112,1714053062577,-500.0,0.0001299,2]
[323498113,1714053062587,-514.6,0.0001299,2]
[323498114,1714053062597,-500.0,0.0001299,2]
[323498115,1714053062607,-500.0,0.0001299,2]
[323498116,1714053062618,-500.0,0.0001299,2]
[323498117,1714053062632,-500.0,0.0001299,2]
[323498118,1714053062658,-500.0,0.0001299,2]
[323498119,1714053062668,-500.0,0.0001299,2]
[323498120,1714053062680,-500.0,0.0001299,2]
[323498121,1714053062690,-500.0,0.0001299,2]
[323498122,1714053062699,-500.0,0.0001299,2]
[323498123,1714053062710,-500.0,0.0001299,2]
[323498124,1714053062719,-500.0,0.0001299,2]
[323498125,1714053062729,-500.0,0.0001299,2]
[323498126,1714053062739,-688.79,0.0001299,2]
[323498127,1714053062749,-500.0,0.0001299,2]
[323498128,1714053062758,-500.0,0.0001299,2]
[323498129,1714053062767,-1354.51,0.0001299,2]
[323498130,1714053062777,-500.0,0.0001299,2]
[323498131,1714053062786,-500.0,0.0001299,2]
[323498132,1714053062796,-500.0,0.0001299,2]
[323498133,1714053062805,-500.0,0.0001299,2]
[323498134,1714053062814,-500.0,0.0001299,2]
[323498135,1714053062823,-500.0,0.0001299,2]
[323498136,1714053062833,-500.0,0.0001299,2]
[323498137,1714053062842,-500.0,0.0001299,2]
[323498138,1714053062851,-500.0,0.0001299,2]
[323498139,1714053062861,-997.04,0.0001299,2]
[323498140,1714053062870,-500.0,0.0001299,2]
[323498141,1714053062882,-500.0,0.0001299,2]
[323498142,1714053062892,-500.0,0.0001299,2]
[323498143,1714053062902,-500.0,0.0001299,2]
[323498144,1714053062917,-500.0,0.0001299,2]
[323498145,1714053062927,-500.0,0.0001299,2]
[323498146,1714053062936,-825.97,0.0001299,2]
[323498147,1714053062946,-500.0,0.0001299,2]
[323498148,1714053062956,-500.0,0.0001299,2]
[323498149,1714053062965,-500.0,0.0001299,2]
[323498150,1714053062975,-624.59,0.0001299,2]
[323498151,1714053062984,-500.0,0.0001299,2]
[323498152,1714053062996,-500.0,0.0001299,2]
[323498153,1714053063005,-500.0,0.0001299,2]
[323498154,1714053063015,-500.0,0.0001299,2]
[323498155,1714053063024,-500.0,0.0001299,2]
[323498156,1714053063034,-500.0,0.0001299,2]
[323498157,1714053063043,-500.0,0.0001299,2]
[323498158,1714053063053,-800.63,0.0001299,2]
[323498159,1714053063062,-500.0,0.0001299,2]
[323498160,1714053063071,-500.0,0.0001299,2]
[323498161,1714053063082,-500.0,0.0001299,2]
[323498162,1714053063092,-500.0,0.0001299,2]
[323498163,1714053063101,-500.0,0.0001299,2]
[323498164,1714053063111,-500.0,0.0001299,2]
[323498165,1714053063121,-500.0,0.0001299,2]
[323498166,1714053063133,-500.0,0.0001299,2]
[323498167,1714053063142,-500.0,0.0001299,2]
[323498168,1714053063151,-500.0,0.0001299,2]
[323498169,1714053063161,-500.0,0.0001299,2]
[323498170,1714053063170,-500.0,0.0001299,2]
[323498171,1714053063180,-500.0,0.0001299,2]
[323498172,1714053063189,-500.0,0.0001299,2]
[323498173,1714053063198,-500.0,0.0001299,2]
[323498174,1714053063207,-500.0,0.0001299,2]
[323498175,1714053063217,-500.0,0.0001299,2]
[323498176,1714053063226,-500.0,0.0001299,2]
[323498177,1714053063235,-500.0,0.0001299,2]
[323498178,1714053063245,-772.67,0.0001299,2]
[323498179,1714053063254,-500.0,0.0001299,2]
[323498180,1714053063263,-500.0,0.0001299,2]
[323498181,1714053063272,-500.0,0.0001299,2]
[323498182,1714053063281,-500.0,0.0001299,2]
[323498183,1714053063291,-500.0,0.0001299,2]
[323498184,1714053063300,-500.0,0.0001299,2]
[323498185,1714053063309,-500.0,0.0001299,2]
[323498186,1714053063318,-500.0,0.0001299,2]
[323498187,1714053063328,-500.0,0.0001299,2]
[323498188,1714053063337,-500.0,0.0001299,2]
[323498189,1714053063346,-500.0,0.0001299,2]
[323498190,1714053063355,-500.0,0.0001299,2]
[323498191,1714053063364,-500.0,0.0001299,2]
[323498192,1714053063373,-150.0,0.0001299,2]
[323498193,1714053063385,-500.0,0.0001299,2]
[323498194,1714053063394,-500.0,0.0001299,2]
[323498195,1714053063544,-500.0,0.0001299,2]
[323498196,1714053063553,-500.0,0.0001299,2]
[323498197,1714053063562,-500.0,0.0001299,2]
[323498198,1714053063572,-500.0,0.0001299,2]
[323498199,1714053063582,-500.0,0.0001299,2]
[323498200,1714053063591,-500.0,0.0001299,2]
[323498201,1714053063600,-151.0,0.0001299,2]
[323498202,1714053063609,-500.0,0.0001299,2]
[323498203,1714053063618,-500.0,0.0001299,2]
[323498204,1714053063629,-500.0,0.0001299,2]
[323498205,1714053063638,-500.0,0.0001299,2]
[323498206,1714053063647,-500.0,0.0001299,2]
[323498207,1714053063657,-500.0,0.0001299,2]
[323498208,1714053063665,-500.0,0.0001299,2]
[323498209,1714053063674,-500.0,0.0001299,2]
[323498210,1714053063683,-500.0,0.0001299,2]
[323498211,1714053063693,-500.0,0.0001299,2]
[323498212,1714053063702,-500.0,0.0001299,2]
[323498213,1714053063711,-500.0,0.0001299,2]
[323498214,1714053063720,-500.0,0.0001299,2]
[323498215,1714053063729,-1035.43,0.0001299,2]
[323498216,1714053063739,-500.0,0.0001299,2]
[323498217,1714053063748,-500.0,0.0001299,2]
[323498218,1714053063758,-500.0,0.0001299,2]
[323498219,1714053063768,-500.0,0.0001299,2]
[323498220,1714053063777,-500.0,0.0001299,2]
[323498221,1714053063787,-500.0,0.0001299,2]
[323498222,1714053063797,-500.0,0.0001299,2]
[323498223,1714053063806,-500.0,0.0001299,2]
[323498224,1714053063815,-873.44,0.0001299,2]
[323498225,1714053063824,-500.0,0.0001299,2]
[323498226,1714053063834,-500.0,0.0001299,2]
[323498227,1714053063843,-500.0,0.0001299,2]
[323498228,1714053063852,-500.0,0.0001299,2]
[323498229,1714053063862,-500.0,0.0001299,2]
[323498230,1714053063871,-500.0,0.0001299,2]
[323498231,1714053063883,-619.36,0.0001299,2]
[323498232,1714053063893,-500.0,0.0001299,2]
[323498233,1714053063903,-500.0,0.0001299,2]
[323498234,1714053063915,-500.0,0.0001299,2]
[323498235,1714053063924,-500.0,0.0001299,2]
[323498236,1714053063934,-500.0,0.0001299,2]
[323498237,1714053063944,-625.79,0.0001299,2]
[323498238,1714053063954,-500.0,0.0001299,2]
[323498239,1714053063963,-500.0,0.0001299,2]
[323498240,1714053063972,-500.0,0.0001299,2]
[323498241,1714053063982,-500.0,0.0001299,2]
[323498242,1714053063993,-500.0,0.0001299,2]
[323498243,1714053064003,-500.0,0.0001299,2]
[323498244,1714053064013,-500.0,0.0001299,2]
[323498245,1714053064022,-500.0,0.0001299,2]
[323498246,1714053064032,-500.0,0.0001299,2]
[323498247,1714053064041,-1599.79,0.0001299,2]
[323498248,1714053064050,-1599.79,0.0001299,2]
[323498249,1714053064059,-500.0,0.0001299,2]
[323498250,1714053064069,-1648.19,0.0001299,2]
[323498251,1714053064079,-500.0,0.0001299,2]
[323498252,1714053064089,-500.0,0.0001299,2]
[323498253,1714053064098,-500.0,0.0001299,2]
[323498254,1714053064107,-500.0,0.0001299,2]
[323498255,1714053064117,-500.0,0.0001299,2]
[323498256,1714053064128,-500.0,0.0001299,2]
[323498257,1714053064137,-500.0,0.0001299,2]
[323498258,1714053064146,-591.1,0.0001299,2]
[323498259,1714053064156,-500.0,0.0001299,2]
[323498260,1714053064165,-1040.77,0.0001299,2]
[323498261,1714053064174,-500.0,0.0001299,2]
[323498262,1714053064183,-273.44,0.0001299,2]
[323498263,1714053064192,-500.0,0.0001299,2]
[323498264,1714053064202,-500.0,0.0001299,2]
[323498265,1714053064211,-1871.56,0.0001299,2]
[323498266,1714053064220,-500.0,0.0001299,2]
[323498267,1714053064229,-500.0,0.0001299,2]
[323498268,1714053064238,-500.0,0.0001299,2]
[323498269,1714053064247,-500.0,0.0001299,2]
[323498270,1714053064256,-500.0,0.0001299,2]
[323498271,1714053064266,-500.0,0.0001299,2]
[323498272,1714053064275,-3496.04,0.0001299,2]
[323498273,1714053064285,-500.0,0.0001299,2]
[323498274,1714053064294,-500.0,0.0001299,2]
[323498275,1714053064304,-500.0,0.0001299,2]
[323498276,1714053064313,-500.0,0.0001299,2]
[323498277,1714053064322,-815.83,0.0001299,2]
[323498278,1714053064331,-500.0,0.0001299,2]
[323498279,1714053064340,-500.0,0.0001299,2]
[323498280,1714053064350,-500.0,0.0001299,2]
[323498281,1714053064359,-3492.56,0.0001299,2]
[323498282,1714053064368,-500.0,0.0001299,2]
[323498283,1714053064378,-500.0,0.0001299,2]
[323498284,1714053064387,-573.69,0.0001299,2]
[323498285,1714053064397,-500.0,0.0001299,2]
[323498286,1714053064406,-500.0,0.0001299,2]
[323498287,1714053064416,-500.0,0.0001299,2]
[323498288,1714053064425,-500.0,0.0001299,2]
[323498289,1714053064434,-500.0,0.0001299,2]
[323498290,1714053064444,-500.0,0.0001299,2]
[323498291,1714053064453,-1000.0,0.0001299,2]
[323498292,1714053064462,-500.0,0.0001299,2]
[323498293,1714053064472,-500.0,0.0001299,2]
[323498294,1714053064481,-2485.06,0.0001299,2]
[323498295,1714053064500,-500.0,0.0001299,2]
[323498296,1714053064516,-500.0,0.0001299,2]
[323498297,1714053064532,-500.0,0.0001299,2]
[323498298,1714053064550,-2026.53,0.0001299,2]
[323498299,1714053064566,-500.0,0.0001299,2]
[323498300,1714053064583,-500.0,0.0001299,2]
[323498301,1714053064599,-500.0,0.0001299,2]
[323498302,1714053064615,-500.0,0.0001299,2]
[323498303,1714053064632,-562.78,0.0001299,2]
[323498304,1714053064649,-1782.8,0.0001299,2]
[323498305,1714053064664,-500.0,0.0001299,2]
[323498306,1714053064680,-1793.94,0.0001299,2]
[323498307,1714053064700,-500.0,0.0001299,2]
[323498308,1714053064717,-500.0,0.0001299,2]
[323498309,1714053064729,-1194.37,0.0001299,2]
[323498310,1714053064744,-1526.39,0.0001299,2]
[323498311,1714053064762,-1949.22,0.0001299,2]
[323498312,1714053064774,-500.0,0.0001299,2]
[323498313,1714053064789,-500.0,0.0001299,2]
[323498314,1714053064803,-489.98,0.0001299,2]
[323498315,1714053064818,-500.0,0.0001299,2]
[323498316,1714053064835,-1544.67,0.0001299,2]
[323498317,1714053064850,-500.0,0.0001299,2]
[323498318,1714053064865,-500.0,0.0001299,2]
[323498319,1714053064882,-500.0,0.0001299,2]
[323498320,1714053064897,-500.0,0.0001299,2]
[323498321,1714053064914,-500.0,0.0001299,2]
[323498322,1714053064929,-500.0,0.0001299,2]
[323498323,1714053064944,-500.0,0.0001299,2]
[323498324,1714053064959,-500.0,0.0001299,2]
[323498325,1714053064976,-500.0,0.0001299,2]
[323498326,1714053064991,-4603.7,0.0001299,2]
[323498327,1714053065006,-500.0,0.0001299,2]
[323498328,1714053065020,-500.0,0.0001299,2]
[323498329,1714053065036,-500.0,0.0001299,2]
[323498330,1714053065051,-500.0,0.0001299,2]
[323498331,1714053065067,-500.0,0.0001299,2]
[323498332,1714053065082,-1511.23,0.0001299,2]
[323498333,1714053065099,-1169.58,0.0001299,2]
[323498334,1714053065115,-500.0,0.0001299,2]
[323498335,1714053065133,-500.0,0.0001299,2]
[323498336,1714053065149,-682.79,0.0001299,2]
[323498337,1714053065165,-500.0,0.0001299,2]
[323498338,1714053065180,-500.0,0.0001299,2]
[323498339,1714053065196,-582.75,0.0001299,2]
[323498340,1714053065212,-500.0,0.0001299,2]
[323498341,1714053065226,-500.0,0.0001299,2]
[323498342,1714053065241,-500.0,0.0001299,2]
[323498343,1714053065256,-500.0,0.0001299,2]
[323498344,1714053065273,-13560.73,0.0001299,2]
[323498345,1714053065288,-500.0,0.0001299,2]
[323498346,1714053065304,-500.0,0.0001299,2]
[323498347,1714053065319,-1975.98,0.0001299,2]
[323498348,1714053065334,-500.0,0.0001299,2]
[323498349,1714053065350,-500.0,0.0001299,2]
[323498350,1714053065366,-500.0,0.0001299,2]
[323498351,1714053065383,-518.04,0.0001299,2]
[323498352,1714053065398,-500.0,0.0001299,2]
[323498353,1714053065413,-500.0,0.0001299,2]
[323498354,1714053065430,-900.43,0.0001299,2]